[Event "Fall GM-A Norm Invitational 2022"]
[Site "Charlotte"]
[Date "2022.11.22"]
[Round "9"]
[White "Siddharth, Jagadeesh"]
[Black "Kaliksteyn, Alexander"]
[Result "1-0"]
[ECO "D45"]
[WhiteElo "2407"]
[BlackElo "2389"]
[Annotator "TA"]
[PlyCount "39"]
[EventDate "2022.11.18"]
[EventType "tourn"]
[EventCountry "USA"]
[SourceTitle "playchess.com"]
[Source "ChessBase"]
[SourceQuality "1"]
[TimeControl "5400+30"]

{[%evp 21,39,17,28,22,18,5,0,-32,0,-38,0,0,58,50,481,488,475,471,472,468]} 1. d4 {[%emt 0:04:58]} d5 {[%emt 0:00:03]} 2. c4 {[%emt 0:00:53]} e6 {[%emt 0:00:04]} 3. Nf3 {[%emt 0:00:07]} Nf6 {[%emt 0:00:07]} 4. Nc3 {[%emt 0:00:08]} c6 {[%emt 0:00:05]} 5. e3 {[%emt 0:00:09]} Nbd7 {[%emt 0:00:06]} 6. Qc2 {[%emt 0:00:11]} Bd6 {[%emt 0:00:20]} 7. Bd3 {[%emt 0:00:10]} O-O {[%emt 0:02:33]} 8. O-O {[%emt 0:00:13]} dxc4 {[%emt 0:00:19]} 9. Bxc4 {[%emt 0:00:08]} b5 {[%emt 0:00:02]} 10. Be2 {[%emt 0:00:13]} Bb7 {[%emt 0:00:06]} 11. e4 {[%emt 0:00:08]} e5 {[%emt 0:01:04]} 12. dxe5 {[%emt 0:00:07] D46: Semi-Slav: 5 e3 Nbd7 6 Bd3, Black avoids the Meran.} Nxe5 {[%emt 0:00:07]} 13. Nd4 {[%emt 0:00:07]} Neg4 {[%emt 0:28:41]} 14. Nf5 {[%emt 0:00:13] [#] Hoping for Bxg4. The position is equal.} Bxh2+ {[%emt 0:14:22]} 15. Kh1 {[%emt 0:00:16] [#] And now f3 would win.} b4 $146 {[%emt 0:12:09]} ({Predecessor:} 15... Bb8 16. Bg5 Bc8 17. Rad1 Qc7 18. Nd6 a6 19. g3 h6 20. Bxf6 Nxf6 21. e5 Nd5 22. Nxd5 cxd5 23. Qxc7 Bxc7 24. Nxc8 {½-½ (24) Mareco,S (2652)-Durarbayli,V (2628) Havana 2022}) 16. Bg5 {[%emt 0:00:11] Bxg4 is the strong threat.} Qc7 {[%emt 0:07:42]} (16... bxc3 $11 17. Bxg4 Be5 18. bxc3 Qa5) 17. f4 {[%emt 0:14:02]} h6 $2 {[%emt 0:10:59][%mdl 8192]} (17... bxc3 $14 18. Qxc3 h6 19. Bxf6 Nxf6 20. Kxh2 Bc8) 18. Bxf6 $18 {[%emt 0:01:40] White is clearly winning.} Nxf6 {[%emt 0:00:11]} 19. Nb5 {[%emt 0:03:30][%mdl 64] [#] Pin. Pair of Knights!} ({Less strong is} 19. Kxh2 bxc3 20. Qxc3 Bc8 $14) 19... Qb8 {[%emt 0:03:40]} 20. Nbd6 {[%emt 0:00:47] Weighted Error Value: White=0.10 (very precise) /Black=0.86} ({Stronger than} 20. Kxh2 cxb5 21. e5 Be4 22. Ne7+ Kh8 $11) 1-0